bitfinex/quotes_ETHUSD_20241204
["timestamp","ask_amount","ask_price","bid_price","bid_amount"]
[1733291836116,0.25353513,3684.9,3684.4,2.71412]
[1733291836411,0.25353513,3684.8,3684.4,2.71412]
[1733291836611,9.5398,3685.0,3684.4,2.71412]
[1733291836612,8.74,3684.9,3684.4,0.53851585]
[1733291836768,0.25358331,3684.8,3684.4,0.53851585]
[1733291836967,8.74,3684.9,3684.4,0.53851585]
[1733291837163,0.25358404,3684.8,3684.4,0.53851585]
[1733291837391,8.74,3684.9,3684.4,0.53851585]
[1733291837594,0.25367587,3684.7,3684.4,0.53851585]
[1733291837903,0.25367587,3684.6,3684.4,0.53851585]
[1733291838112,0.7998,3685.0,3684.6,2.71399]
[1733291838309,0.2536635,3684.9,3684.6,2.71399]
[1733291838605,0.2536635,3684.8,3684.6,2.71399]
[1733291838810,0.2536635,3684.7,3684.6,2.71399]
[1733291839106,0.2536635,3684.7,3684.4,0.53851585]
[1733291839312,0.2536635,3684.6,3684.4,3.25261585]
[1733291839467,1.20566617,3685.0,3684.4,3.25261585]
[1733291839671,0.25372068,3684.9,3684.4,3.25261585]
[1733291839912,0.25372068,3684.8,3684.4,3.25261585]
[1733291840070,0.25372068,3684.7,3684.4,3.25261585]
[1733291840266,2.20023279,3685.0,3684.4,3.25261585]
[1733291840267,0.25372068,3684.6,3684.4,3.25261585]
[1733291840474,0.25372068,3684.5,3684.4,3.25261585]
[1733291840685,0.25372068,3684.5,3684.4,2.7141]
[1733291844680,0.25384572,3684.5,3684.4,2.7141]
[1733291846714,0.25384572,3684.5,3684.2,0.54612866]
[1733291846917,0.25384572,3684.4,3684.2,0.54612866]
[1733291847119,0.40615316,3684.7,3684.2,0.54612866]
[1733291847318,0.25393212,3684.6,3684.2,0.54612866]
[1733291847501,0.25393212,3684.5,3684.3,2.71421]
[1733291847709,0.25393212,3684.4,3684.3,2.71421]
[1733291848019,0.25397658,3684.4,3684.3,2.71421]
[1733291851811,0.25397658,3684.4,3684.3,3.23959566]
[1733291852196,0.25397658,3684.4,3684.3,3.99289566]
[1733291852528,0.7712,3685.4,3685.0,2.71364]
[1733291852713,0.66087445,3685.3,3685.0,2.71364]
[1733291853028,0.66087445,3685.2,3685.0,2.71364]
[1733291853325,0.66087445,3685.1,3685.0,2.71364]
[1733291854040,0.66087445,3685.1,3684.2,0.54612866]
[1733291854041,0.8175,3684.8,3683.7,0.7524]
[1733291854242,0.66087445,3684.7,3683.5,2.01632004]
[1733291854581,0.66087445,3684.6,3684.1,2.71435]
[1733291854718,0.66087445,3684.5,3684.2,2.71428]
[1733291854889,8.74,3685.1,3684.2,1.16771795]
[1733291855095,1.13712528,3685.2,3684.7,1.16771795]
[1733291855096,8.74,3685.2,3684.7,1.16771795]
[1733291855338,0.66132302,3685.1,3684.7,1.16771795]
[1733291855491,0.66132302,3685.0,3684.7,1.16771795]
[1733291855698,0.66118229,3684.9,3684.6,2.71392]
[1733291855942,0.25435501,3684.8,3684.4,2.71414]
[1733291856138,0.25435501,3684.7,3684.4,2.71414]
[1733291856340,0.40676226,3685.0,3684.4,2.71414]
[1733291856558,1.47349912,3684.9,3684.4,2.71414]
[1733291856829,0.25423686,3684.8,3684.4,2.71414]
[1733291857134,0.25423686,3684.7,3684.4,2.71414]
[1733291857431,0.25423686,3684.6,3684.4,2.71414]
[1733291857633,0.8125,3684.9,3684.5,2.71405]
[1733291857837,0.66103315,3684.8,3684.5,2.71405]
[1733291858140,0.25424352,3684.7,3684.5,2.71405]
[1733291858349,0.25424352,3684.6,3684.5,2.71405]
[1733291858753,0.8125,3684.9,3684.5,2.71405]
[1733291858916,0.661033,3684.8,3684.5,2.71405]
[1733291859271,0.25424346,3684.7,3684.5,2.71405]
[1733291859420,0.25424346,3684.6,3684.5,2.71405]
[1733291860853,0.25424346,3684.6,3684.1,0.7896]
[1733291861037,0.25424346,3684.5,3684.1,1.18107268]
[1733291861362,0.4068408,3684.7,3684.1,1.18107268]
[1733291861556,0.66113612,3684.6,3684.1,1.18107268]
[1733291861846,0.25427606,3684.5,3684.1,1.18107268]
[1733291862079,0.25427606,3684.4,3684.1,1.18107268]
[1733291862349,0.25427606,3684.3,3684.2,2.71429]
[1733291862555,0.25427606,3684.3,3684.2,3.41633895]
[1733291863264,0.8125,3684.9,3684.3,2.71421]
[1733291863409,0.6611942,3684.8,3684.3,2.71421]
[1733291863613,0.6611942,3684.7,3684.3,2.71421]
[1733291863912,0.6611942,3684.6,3684.3,2.71421]
[1733291864137,0.25429966,3684.5,3684.3,2.71421]
[1733291864332,0.25429966,3684.4,3684.2,2.71429]
[1733291864568,0.40688836,3684.8,3684.4,2.71408]
[1733291864711,0.66119744,3684.7,3684.5,2.71402]
[1733291864911,0.25430908,3684.6,3684.5,2.71402]
[1733291865554,0.66120071,3684.6,3684.5,2.71402]
[1733291865889,0.66120226,3684.6,3684.5,2.71402]
[1733291867138,0.66120695,3684.6,3684.5,2.71402]
[1733291867667,0.66120695,3684.6,3684.1,1.18107268]
[1733291867824,0.25430856,3684.5,3684.4,2.71414]
[1733291869213,0.25430859,3684.5,3684.4,2.71414]
[1733291873998,0.25430859,3684.5,3684.2,2.71429]
[1733291874197,0.25430859,3684.4,3684.2,2.71429]
[1733291874389,0.40691836,3684.8,3684.2,2.71429]
[1733291874696,0.66124243,3684.7,3684.2,2.71429]
[1733291875002,1.44234243,3684.6,3684.2,2.71429]
[1733291875204,0.25432407,3684.5,3684.2,2.71429]
[1733291875362,0.25432407,3684.4,3684.2,2.71429]
[1733291875562,0.25432684,3684.3,3683.9,2.71444]
[1733291875782,0.25432684,3684.2,3683.9,2.71448]
[1733291876035,0.25432684,3684.1,3684.0,2.71443]
[1733291878131,0.25432684,3684.1,3684.0,3.88237365]
[1733291879901,0.25423577,3684.1,3684.0,3.88237365]
[1733291880103,0.40677733,3684.5,3684.0,3.88237365]
[1733291880299,0.2542359,3684.4,3684.2,3.88222365]
[1733291880557,0.7811,3684.6,3684.2,3.88223365]
[1733291880558,0.66101334,3684.3,3684.2,3.88223365]
[1733291880841,0.66099729,3684.3,3684.2,3.88223365]
[1733291881502,0.2542359,3684.3,3684.2,3.88223365]
[1733291881709,0.66095784,3684.3,3684.2,3.88223365]
[1733291882247,0.2542359,3684.3,3684.2,3.88223365]
[1733291882450,0.2541887,3684.3,3684.2,3.88223365]
[1733291883123,0.66089101,3684.3,3684.2,3.88223365]
[1733291883376,8.74,3684.6,3684.2,3.88223365]
[1733291883638,0.66087741,3684.5,3684.4,3.88208365]
[1733291884210,0.25418362,3684.5,3684.4,3.88208365]
[1733291884411,0.66088532,3684.5,3684.4,3.88208365]
[1733291885844,8.74,3684.8,3684.4,1.16794365]
[1733291886049,8.74,3684.8,3684.7,1.16794365]
[1733291886349,9.40097357,3684.8,3684.7,1.16794365]
[1733291888496,0.66097357,3684.8,3684.7,4.67296365]
[1733291888801,0.2542206,3684.8,3684.7,5.41166902]
[1733291889363,1.93542528,3685.6,3685.1,2.71363]
[1733291889364,0.40671143,3685.2,3685.1,2.71363]
[1733291889563,0.66088503,3685.2,3685.1,3.88157365]
[1733291889760,0.25418655,3685.2,3685.1,3.88157365]
[1733291889967,0.25418655,3685.2,3685.1,4.66657365]
[1733291890160,0.25418655,3685.2,3685.1,4.35346173]
[1733291891371,8.74,3685.5,3685.4,2.7134]
[1733291891600,8.99397703,3685.5,3685.4,3.88134365]
[1733291892311,8.99397703,3685.5,3685.4,2.7134]
[1733291892978,9.40021981,3685.5,3685.4,2.7134]
[1733291893175,8.99397703,3685.5,3685.4,2.7134]
[1733291893614,0.25397703,3685.5,3685.4,2.7134]
[1733291896477,0.25366766,3685.5,3685.4,2.7134]
[1733291896819,0.8107,3685.6,3685.4,2.7134]
[1733291897015,0.25366936,3685.5,3685.4,2.7134]
[1733291900230,8.74,3685.8,3685.7,2.71318]
[1733291900719,9.39922335,3685.8,3685.7,2.71318]
[1733291902616,9.39922335,3685.8,3685.5,2.71332]
[1733291902830,0.25354744,3685.7,3685.5,2.71332]
[1733291902978,0.25354744,3685.6,3685.5,2.71332]
[1733291906818,0.55,3684.5,3683.9,0.03349846]
[1733291906999,1.78182817,3684.4,3683.9,0.03349846]
[1733291907206,1.07774065,3684.4,3683.9,0.03349846]
[1733291907399,0.25357873,3684.3,3683.9,0.03349846]
[1733291907599,0.25357873,3684.2,3683.9,0.03349846]
[1733291907794,0.25357873,3684.1,3683.9,0.03349846]
[1733291908026,0.25357873,3684.0,3683.9,0.03349846]
[1733291908633,0.65930471,3684.0,3683.9,0.03349846]
[1733291909326,0.25357873,3684.0,3683.9,0.03349846]
[1733291909537,11.20208172,3683.7,3681.7,0.8077]
[1733291909764,3.0,3683.2,3682.2,0.5305433]
[1733291909898,1.46670471,3683.1,3681.7,0.8077]
[1733291910237,3.0,3682.8,3681.7,0.8077]
[1733291910398,3.40572598,3682.8,3681.7,0.8077]
[1733291910605,0.25357873,3682.7,3681.7,0.8077]
[1733291910803,0.25357873,3682.6,3681.8,0.53706036]
[1733291911048,0.25357873,3682.5,3682.1,2.71581]
[1733291911251,0.25357873,3682.5,3680.9,5.30789439]
[1733291911252,8.20208172,3682.1,3680.2,3.47314]
[1733291911557,8.20208172,3681.9,3681.2,0.54460929]
[1733291911756,0.25294288,3681.8,3681.2,3.26108929]
[1733291911940,0.25294288,3681.8,3681.3,2.71642]
[1733291912145,0.25294288,3681.8,3681.4,2.71635]
[1733291912345,8.20208172,3681.9,3681.4,2.71635]
[1733291913061,8.20208172,3681.9,3681.4,2.71631]
[1733291914560,8.20208172,3681.8,3681.4,2.71631]
[1733291915618,8.20208172,3681.8,3681.6,2.71618]
[1733291915823,8.20208172,3682.3,3681.7,2.71608]
[1733291916078,9.10108989,3682.3,3681.8,2.71604]
[1733291916768,8.20208172,3682.2,3681.9,2.71598]
[1733291919061,0.89900817,3682.3,3681.4,2.71635]
[1733291919062,8.20208172,3682.3,3682.1,2.71583]
[1733291920383,8.20208172,3682.8,3682.6,2.71541]
[1733291920535,0.82020817,3682.7,3682.6,2.71541]
[1733291920742,8.20208172,3682.8,3682.6,2.71541]
[1733291923777,8.95978172,3683.6,3683.4,2.71486]
[1733291927447,0.7573,3683.9,3683.0,0.792]
[1733291927782,0.7573,3683.9,3683.6,2.71472]
[1733291929181,1.19844237,3683.9,3683.6,2.71472]
[1733291930185,1.19844237,3683.9,3683.0,0.792]
[1733291930484,0.7573,3683.9,3683.7,2.71465]
[1733291931240,0.25158602,3683.8,3683.7,2.71465]
[1733291931773,0.7573,3683.9,3683.7,2.71465]
[1733291931972,0.7573,3683.9,3683.3,2.7149]
[1733291932172,0.25200748,3683.9,3683.8,2.71458]
[1733291932381,0.25215918,3683.9,3683.8,2.71458]
[1733291932596,8.4542409,3683.9,3683.8,2.71458]
[1733291933263,8.85795643,3683.9,3683.8,2.71458]
[1733291935362,8.20208172,3683.9,3683.8,2.71458]
[1733291935574,8.85913971,3683.9,3683.8,2.71458]
[1733291940010,0.65705799,3683.9,3683.8,2.71458]
[1733291940188,0.25271461,3683.9,3683.8,3.063528]
[1733291940696,8.20208172,3684.2,3683.8,3.063528]
[1733291940697,8.20208172,3684.2,3684.1,2.71436]
[1733291942884,8.48335269,3684.8,3684.7,2.71392]
[1733291943054,9.14079155,3684.8,3684.7,2.71392]
[1733291943260,0.53413207,3684.8,3684.7,5.30511439]
[1733291943596,0.53413207,3684.8,3684.7,2.71392]
[1733291943994,0.28127097,3684.8,3684.7,2.71392]
[1733291944656,0.53405557,3684.8,3684.7,2.71392]
[1733291944859,0.28127097,3684.8,3684.7,3.256722]
[1733291945194,0.28127097,3684.8,3684.7,4.086322]
[1733291948608,0.28127097,3684.8,3684.7,4.61636577]
[1733291949378,0.28127097,3684.8,3684.7,4.64349947]
[1733291950864,0.28127097,3684.8,3684.7,4.61636577]
[1733291951068,0.28127097,3684.8,3684.7,4.64349892]
[1733291951294,9.7e-07,3684.8,3684.7,7.20756016]
[1733291953909,9.7e-07,3684.8,3684.7,7.75756016]
[1733291954573,9.7e-07,3684.8,3684.7,7.85755388]
[1733291959309,0.25243707,3686.3,3685.8,2.71311]
[1733291959472,0.781,3686.4,3685.8,5.65189539]
[1733291959669,0.25241175,3686.3,3685.8,5.65189539]
[1733291959911,0.781,3686.4,3685.8,5.65189539]
[1733291960110,0.25240861,3686.3,3685.8,5.65189539]
[1733291960310,0.781,3686.4,3685.8,5.65189539]
[1733291960512,0.25240386,3686.3,3685.8,5.65189539]
[1733291960724,0.781,3686.4,3685.8,5.65189539]
[1733291961219,0.25240787,3686.3,3685.8,5.65189539]
[1733291961393,0.781,3686.4,3685.8,5.65189539]
[1733291963102,0.25243878,3686.3,3685.8,6.20519905]
[1733291963307,0.781,3686.4,3685.8,6.20519905]
[1733291963507,0.25247636,3686.3,3685.8,6.20519905]
[1733291963707,0.781,3686.4,3685.8,6.20519905]
[1733291964410,3.0,3687.2,3685.8,0.55330366]
[1733291964411,1.8365,3685.9,3685.8,0.55330366]
[1733291964716,2.08907114,3685.9,3685.8,2.71311]
[1733291965313,1.26147114,3685.9,3685.8,2.71311]
[1733291965509,1.0089,3685.9,3685.8,2.71311]
[1733291966316,1.26166927,3685.9,3685.8,2.71311]
[1733291967115,1.0089,3685.9,3685.8,2.71311]
[1733291967390,1.26180638,3685.9,3685.8,2.71311]
[1733291968118,1.0089,3685.9,3685.8,3.03904898]
[1733291968607,1.26196836,3685.9,3685.8,3.03904898]
[1733291968923,1.0089,3685.9,3685.8,3.03904898]
[1733291969725,1.26216981,3685.9,3685.8,3.03904898]
[1733291970391,1.26216981,3685.9,3685.8,5.63024337]
[1733291971024,1.26216121,3685.9,3685.8,5.63024337]
[1733291972944,1.26232192,3685.9,3685.8,5.63024337]
[1733291976499,1.26258319,3685.9,3685.8,5.63024337]
[1733291977927,0.32584012,3685.9,3685.8,3.03904898]
[1733291981853,0.32584012,3685.9,3685.8,6.03904898]
[1733291985615,0.32584012,3685.9,3685.8,7.20526254]
[1733291991362,0.7833,3687.0,3686.6,2.71251]
[1733291991569,0.7833,3687.3,3686.9,1.16621356]
[1733291991752,0.6603159,3687.2,3686.9,1.16621356]
[1733291992060,0.25396765,3687.1,3687.0,2.71222]
[1733291993262,0.7833,3687.3,3687.1,2.71209]
[1733291993422,0.25379959,3687.2,3687.1,2.71209]
[1733291994370,0.7833,3687.3,3687.2,2.71208]
[1733291994577,1.03702068,3687.3,3687.2,2.71208]
[1733291994989,0.8152,3687.6,3687.4,2.7119]
[1733291995283,0.25371118,3687.5,3687.4,2.7119]
[1733291996477,0.8152,3687.6,3687.4,2.7119]
[1733291996841,0.25360499,3687.5,3687.4,2.7119]
[1733291997078,0.25360499,3687.5,3687.0,0.549069]
[1733291997289,0.8152,3687.6,3687.0,0.549069]
[1733291997290,0.8152,3687.6,3687.3,2.71201]
[1733291997591,0.8152,3687.6,3687.5,2.71186]
[1733291999781,0.8322,3687.8,3687.6,2.71178]
[1733292000346,0.8322,3687.8,3687.6,2.71173]
[1733292000553,0.8322,3687.8,3687.7,2.71171]
[1733292000785,1.08565853,3687.8,3687.7,2.71171]
[1733292001077,0.8322,3687.8,3687.7,2.71171]
[1733292001306,0.55,3687.0,3685.1,0.2714]
[1733292001447,0.7659,3686.6,3684.8,0.05126885]
[1733292001646,0.25355435,3686.5,3685.5,0.54552805]
[1733292001889,9.22153607,3686.4,3685.5,3.25885805]
[1733292002056,0.25355435,3686.3,3685.5,3.25885805]
[1733292002391,8.96798172,3686.4,3685.5,0.54552805]
[1733292002556,0.2535986,3686.3,3685.6,2.71325]
[1733292002758,0.2535986,3686.2,3685.7,2.71316]
[1733292003087,0.2535986,3686.1,3685.7,2.71316]
[1733292003270,8.96798172,3686.4,3685.7,2.71316]
[1733292003447,8.96798172,3686.4,3685.8,2.71308]
[1733292003659,0.2535775,3686.3,3685.8,2.71308]
[1733292003862,3.55,3685.5,3683.8,0.2714]
[1733292004064,6.2635,3685.3,3684.1,0.55518918]
[1733292004297,6.2635,3685.3,3683.8,2.71456]
[1733292004298,3.0,3685.1,3683.8,2.71456]
[1733292004607,1.69782283,3685.0,3683.0,2.95705428]
[1733292004773,8.45572379,3684.9,3683.9,3.26423158]
[1733292004982,0.723,3684.7,3684.0,2.7144]
[1733292005304,0.723,3684.7,3684.1,2.71431]
[1733292005305,8.92508172,3684.7,3684.1,2.71431]
[1733292005519,8.92508172,3684.7,3683.8,2.58324159]
[1733292005798,0.723,3684.7,3684.4,2.71409]
[1733292006792,0.723,3684.7,3684.5,2.71405]
[1733292006997,0.723,3685.3,3684.6,2.71396]
[1733292007198,0.723,3685.3,3683.9,3.80944539]
[1733292007364,0.723,3685.3,3684.9,2.71373]
[1733292007977,0.723,3684.7,3682.9,3.802034]
[1733292008277,3.55,3685.0,3683.0,2.71516]
[1733292008278,0.723,3684.4,3683.0,2.71516]
[1733292008461,0.723,3684.4,3683.4,2.71486]
[1733292008661,0.723,3684.4,3683.4,2.71481]
[1733292009093,8.20208172,3684.3,3683.6,2.7147]
[1733292009567,9.09458989,3684.3,3683.4,2.71481]
[1733292009763,0.723,3682.9,3681.9,2.73351645]
[1733292010175,0.723,3682.9,3682.0,2.71587]
[1733292011391,0.723,3682.9,3681.9,0.01754645]
[1733292011575,3.0,3683.0,3681.6,2.71618]
[1733292011576,0.723,3682.7,3681.6,2.71618]
[1733292012102,8.20208172,3682.6,3681.8,2.71604]
[1733292012318,9.14958989,3682.6,3681.2,2.58324159]
[1733292012601,9.14958989,3682.6,3681.9,2.71593]
[1733292012602,8.20208172,3682.5,3681.9,2.71593]
[1733292012810,8.20208172,3682.5,3681.3,2.71643]
[1733292013304,8.20208172,3682.5,3681.9,2.71596]
[1733292013869,8.20208172,3682.5,3681.9,2.71592]
[1733292014062,8.72840206,3682.5,3681.9,2.71592]
[1733292014503,8.72840206,3682.5,3681.2,2.58324159]
[1733292014668,8.72840206,3682.5,3681.0,0.53924977]
[1733292014669,8.20208172,3682.5,3682.0,2.58324159]
[1733292014868,8.20208172,3682.5,3682.4,2.58324159]
[1733292015672,8.92508172,3683.2,3683.0,2.71512]
[1733292015866,0.723,3683.2,3683.0,2.71512]
[1733292016303,0.723,3684.3,3683.4,2.71484]
[1733292016503,9.09458989,3684.2,3683.9,2.71449]
[1733292016688,9.09458989,3684.2,3683.3,2.71489]
[1733292016689,8.20208172,3684.2,3684.1,2.71436]
[1733292016902,0.723,3684.7,3684.1,2.71436]
[1733292017104,0.723,3684.7,3684.2,2.71429]
[1733292017417,0.723,3684.7,3684.5,2.71402]
[1733292018284,8.92508172,3685.6,3684.5,2.71402]
[1733292018478,0.89250817,3685.5,3684.9,2.71375]
[1733292018681,0.89250817,3685.5,3685.0,2.71369]
[1733292019019,0.89250817,3685.5,3685.3,2.71345]
[1733292019229,0.723,3685.6,3685.4,2.71338]
[1733292019406,0.723,3686.1,3685.6,2.71322]
[1733292019722,8.92508172,3686.1,3685.8,2.7131]
[1733292019973,8.92508172,3686.1,3685.9,2.71303]
[1733292020920,0.723,3686.1,3685.9,2.71303]
[1733292021624,8.20208172,3686.7,3686.1,2.71283]
[1733292021783,3.0,3686.5,3686.1,2.71283]
[1733292022506,11.20208172,3686.5,3686.1,2.71283]
[1733292022685,8.20208172,3686.5,3686.1,2.71283]
[1733292022881,8.20208172,3686.5,3686.3,2.71273]
[1733292023081,0.82020817,3686.4,3686.3,2.71273]
[1733292023504,0.82020817,3686.4,3685.7,2.71318]
[1733292023718,0.82020817,3686.4,3686.2,2.71276]
[1733292024911,8.20208172,3687.1,3686.7,2.71243]
[1733292025735,8.20208172,3687.1,3686.0,3.0566333]
[1733292025917,8.20208172,3687.1,3686.8,2.71236]
[1733292027033,8.20208172,3687.1,3686.3,2.71274]
[1733292027238,8.20208172,3687.1,3686.1,0.5323103]
[1733292027239,0.82020817,3687.0,3686.6,2.71252]
[1733292028698,0.82020817,3687.0,3686.1,0.5323103]
[1733292029039,0.82020817,3687.0,3686.7,2.71243]
[1733292029528,0.82020817,3687.0,3686.8,2.71236]
[1733292029835,8.20208172,3687.3,3686.4,3.0566333]
[1733292029836,8.20208172,3687.3,3686.9,2.71228]
[1733292030051,0.723,3687.4,3686.1,0.5323103]
[1733292030052,0.723,3687.4,3687.0,2.71221]
[1733292030343,0.723,3687.8,3687.2,2.71206]
[1733292030658,8.92508172,3687.8,3686.8,3.0566333]
[1733292030802,8.20208172,3687.8,3687.6,2.71177]
[1733292031245,8.20208172,3687.8,3687.4,2.71192]
[1733292031618,8.20208172,3687.8,3686.7,2.71241]
[1733292031918,3.0,3687.7,3686.8,2.71237]
[1733292032121,1.12020817,3687.6,3686.8,2.71237]
[1733292034910,9.32228989,3687.6,3686.8,2.71237]
[1733292037842,8.20208172,3687.5,3686.8,2.71232]
[1733292039904,8.20208172,3687.5,3686.6,2.7125]
[1733292040210,8.20208172,3687.5,3686.4,1.29701982]
[1733292040434,1.23222899,3687.4,3686.7,2.71243]
[1733292040827,0.723,3687.3,3686.4,0.54121982]
[1733292041050,0.723,3687.3,3685.3,0.29999372]
[1733292041051,8.20208172,3687.2,3685.6,3.38175595]
[1733292041205,8.20208172,3687.2,3685.6,6.09495595]
[1733292041538,8.20208172,3687.2,3686.0,0.55368881]
[1733292041755,1.13410769,3687.1,3686.1,2.71288]
[1733292041960,1.13410769,3687.1,3686.2,2.7128]
[1733292044654,1.13410769,3687.1,3686.3,2.71274]
[1733292045013,1.12732821,3687.1,3686.3,2.71274]
[1733292045214,1.37969385,3687.1,3686.3,2.71274]
[1733292045421,1.03047756,3687.0,3686.3,2.71274]
[1733292046361,8.45444736,3686.9,3685.9,3.24657973]
[1733292046561,0.25236564,3686.8,3685.6,3.38175595]
[1733292046855,0.25236564,3686.7,3686.2,2.71281]
[1733292047155,8.20208172,3686.9,3686.2,2.71281]
[1733292047321,0.25280836,3686.8,3686.2,2.71281]
[1733292047525,0.25280836,3686.7,3686.2,2.71281]
[1733292047722,0.25280836,3686.6,3686.2,2.71281]
[1733292047955,0.25280836,3686.5,3686.2,2.71281]
[1733292048170,8.20208172,3686.8,3686.1,2.71289]
[1733292048459,0.25338448,3686.7,3686.2,2.71279]
[1733292048756,0.25338448,3686.6,3686.2,2.71279]
[1733292048913,0.25338448,3686.5,3686.2,2.71279]
[1733292049119,0.25338448,3686.4,3686.2,2.71279]
[1733292049368,0.2535425,3686.3,3686.2,2.71279]
[1733292049725,8.20208172,3686.8,3686.2,2.71279]
[1733292049935,0.25354369,3686.7,3686.2,2.71279]
[1733292050264,0.25354369,3686.6,3686.2,2.71279]
[1733292050424,0.97654369,3686.5,3686.2,2.71279]
[1733292050625,0.25354369,3686.4,3686.2,2.71279]
[1733292050861,0.25354369,3686.3,3686.2,2.71279]
[1733292055466,0.25389848,3686.3,3686.2,2.71279]
[1733292055871,0.723,3686.5,3686.2,2.71279]
[1733292056050,0.25389879,3686.4,3686.2,2.71279]
[1733292056259,0.25389879,3686.3,3686.2,2.71279]
[1733292058454,0.25389879,3686.3,3686.1,2.71287]
[1733292058658,0.723,3686.5,3686.1,2.71287]
[1733292058870,0.25388988,3686.4,3686.1,2.71287]
[1733292059088,0.25389411,3686.3,3686.1,2.71287]
[1733292059266,0.25389411,3686.2,3686.1,2.71287]
[1733292059884,0.723,3686.5,3686.1,2.71287]
[1733292060047,0.25387977,3686.4,3686.1,2.71287]
[1733292060244,0.25387977,3686.3,3686.1,2.71287]
[1733292060563,0.723,3686.5,3686.1,2.71287]
[1733292060762,0.25387791,3686.4,3686.1,2.71287]
[1733292060964,0.25387791,3686.3,3686.1,2.71287]
[1733292061160,0.25387791,3686.2,3686.1,2.71287]
[1733292061979,0.723,3686.9,3686.5,2.71255]
[1733292062155,0.25397963,3686.8,3686.5,2.71255]
[1733292062356,0.25397963,3686.7,3686.5,2.71255]
[1733292062681,0.25397963,3686.6,3686.5,2.71255]
[1733292064395,0.25397963,3686.6,3686.5,4.06526059]
[1733292064607,8.20208172,3687.0,3686.9,2.7123]
[1733292064896,0.25399174,3687.0,3686.9,5.29585595]
[1733292068156,0.723,3688.0,3687.3,2.71194]
[1733292068361,0.723,3688.0,3687.3,2.71199]
[1733292068580,1.19250817,3687.9,3687.3,2.71199]
[1733292069395,0.25390014,3687.8,3687.3,2.71199]
[1733292069560,0.50781617,3687.8,3687.3,2.71199]
[1733292069759,0.25390014,3687.8,3687.3,2.71199]
[1733292071000,0.25390014,3687.8,3687.4,2.71192]
[1733292071957,0.25390014,3687.8,3687.2,2.71208]
[1733292072164,0.25390014,3687.8,3687.2,0.40339787]
[1733292072402,0.25390014,3687.8,3687.7,2.71171]
[1733292074907,0.723,3688.0,3687.7,2.71171]
[1733292075431,0.723,3688.5,3687.7,2.58355595]
[1733292076526,0.723,3688.5,3687.9,2.71157]
[1733292076852,1.30533448,3688.4,3687.9,2.71157]
[1733292078247,0.723,3688.5,3688.0,2.71149]
[1733292080628,0.723,3688.9,3688.1,2.71141]
[1733292081131,0.723,3688.9,3688.5,2.58355595]
[1733292081331,0.723,3689.3,3688.5,2.58355595]
[1733292081532,0.723,3689.3,3688.5,5.29466595]
[1733292081931,0.723,3689.3,3688.2,2.58355595]
[1733292082169,0.723,3689.2,3688.1,2.71141]
[1733292082845,0.723,3689.2,3687.9,2.71156]
[1733292083072,0.723,3689.0,3687.9,2.71156]
[1733292083269,3.43377,3689.0,3687.8,5.82975886]
[1733292083575,0.343377,3688.9,3687.8,3.11813886]
[1733292083870,8.92508172,3688.8,3687.6,2.71173]
[1733292084076,0.723,3688.6,3687.6,2.71173]
[1733292084378,0.723,3688.6,3687.4,2.58355595]
[1733292084379,0.723,3688.4,3686.9,3.37265595]
[1733292084676,0.723,3688.3,3687.1,2.71215]
[1733292084975,0.723,3688.3,3687.1,3.32063059]
[1733292084976,1.066422,3688.3,3687.1,3.32063059]
[1733292085130,9.26850372,3688.3,3687.2,2.71207]
[1733292086368,9.26850372,3688.3,3687.4,2.71192]
[1733292088540,9.26850372,3688.3,3687.1,3.2431213]
[1733292088541,0.723,3688.2,3687.1,3.2431213]
[1733292088963,0.723,3688.1,3687.1,3.2431213]
[1733292089131,0.723,3688.1,3687.1,3.82578902]
[1733292089337,0.723,3688.1,3687.1,3.29478772]
[1733292092090,8.92508172,3688.1,3687.1,3.29478772]
[1733292093457,8.92508172,3688.1,3687.2,2.71205]
[1733292093657,8.92508172,3688.1,3687.1,0.58266772]
[1733292093884,8.92508172,3688.1,3687.4,2.71193]
[1733292094767,8.92508172,3688.1,3687.1,2.71215]
[1733292095135,0.723,3688.1,3687.1,2.71215]
[1733292095257,0.723,3688.1,3687.9,2.71154]
[1733292095607,8.20208172,3688.8,3687.9,2.71154]
[1733292095608,0.723,3688.7,3687.9,2.71152]
[1733292095766,0.723,3688.7,3687.6,0.53842207]
[1733292095973,0.723,3688.7,3688.0,2.71148]
[1733292096172,0.723,3688.7,3688.1,2.71139]
[1733292097100,0.723,3688.7,3687.7,0.40007821]
[1733292097101,0.723,3688.7,3688.2,2.71131]
[1733292097261,0.723,3688.7,3688.2,2.71127]
[1733292097462,0.723,3688.7,3688.3,2.71126]
[1733292099318,0.723,3688.7,3687.7,0.40007821]
[1733292099527,0.723,3688.7,3688.4,2.71119]
[1733292099821,0.723,3688.7,3688.1,2.71136]
[1733292100181,0.723,3688.7,3688.2,2.71133]
[1733292101105,0.723,3688.7,3688.4,2.71117]
[1733292101490,0.723,3688.7,3687.8,2.71164]
[1733292101676,0.723,3688.7,3687.9,0.70445962]
[1733292101877,0.723,3688.7,3688.3,2.71124]
[1733292103006,0.723,3689.1,3688.4,2.71119]
[1733292104031,0.723,3689.1,3688.5,2.71109]
[1733292104825,0.723,3689.1,3688.2,2.71132]
[1733292105029,1.70475899,3689.1,3688.2,2.71132]
[1733292105323,1.70475899,3689.1,3688.3,2.71126]
[1733292106295,1.70475899,3689.1,3687.9,0.70445962]
[1733292107030,9.90684071,3689.1,3687.9,0.70445962]
[1733292107419,9.90684071,3689.1,3688.1,2.71135]
[1733292108717,9.90684071,3689.1,3688.3,2.71127]
[1733292109995,1.70475899,3689.1,3688.3,2.71127]
[1733292110327,1.70475899,3689.1,3688.1,0.6377083]
[1733292110530,1.70475899,3689.1,3688.2,2.71134]
[1733292112125,1.70475899,3689.1,3687.7,0.8109]
[1733292112335,1.70475899,3689.1,3688.2,2.71134]
[1733292112639,1.70475899,3689.1,3687.9,2.58355595]
[1733292112640,0.723,3688.9,3687.8,2.71163]
[1733292112995,8.92508172,3688.9,3687.8,2.71163]
[1733292113293,8.92508172,3688.9,3687.8,2.71157]
[1733292113626,8.68737176,3688.9,3687.8,2.71157]
[1733292113828,0.723,3688.8,3687.9,2.71155]